fUST/lending_fUST_20250106
["ID","MTS","AMOUNT","RATE_DAILY","PERIOD"]
[347840328,1736147257229,-556.42,0.00019452,3]
[347840329,1736147257251,-500.0,0.00019452,3]
[347840330,1736147257272,-500.0,0.00019452,3]
[347840331,1736147257293,-500.0,0.00019452,3]
[347840332,1736147257315,-528.26951452,0.00019452,3]
[347840333,1736147257335,-500.0,0.00019452,3]
[347840334,1736147257357,-500.0,0.00019452,3]
[347840335,1736147257379,-500.0,0.00019452,3]
[347840336,1736147257401,-500.0,0.00019452,3]
[347840337,1736147257569,-592.76,0.00019452,3]
[347840338,1736147257593,-546.77,0.00019452,3]
[347840339,1736147257615,-500.0,0.00019452,3]
[347840340,1736147257636,-613.48,0.00019452,3]
[347840341,1736147257671,-500.0,0.00019452,3]
[347840342,1736147257700,-500.0,0.00019452,3]
[347840343,1736147257731,-500.0,0.00019452,3]
[347840344,1736147257755,-2131.19,0.00019452,3]
[347840345,1736147257778,-500.0,0.00019452,3]
[347840346,1736147257800,-500.0,0.00019452,3]
[347840347,1736147257822,-500.0,0.00019452,3]
[347840348,1736147257846,-531.88,0.00019452,3]
[347840349,1736147257870,-523.77,0.00019452,3]
[347840350,1736147257891,-500.0,0.00019452,3]
[347840351,1736147257915,-500.0,0.00019452,3]
[347840352,1736147257937,-500.0,0.00019452,3]
[347840353,1736147257960,-500.0,0.00019452,3]
[347840354,1736147257980,-500.0,0.00019452,3]
[347840355,1736147258002,-500.0,0.00019452,3]
[347840356,1736147258023,-500.0,0.00019452,3]
[347840357,1736147258044,-500.0,0.00019452,3]
[347840358,1736147258066,-1000.69,0.00019452,3]
[347840359,1736147258089,-500.0,0.00019452,3]
[347840360,1736147258111,-500.0,0.00019452,3]
[347840361,1736147258132,-634.97,0.00019452,3]
[347840362,1736147258153,-500.0,0.00019452,3]
[347840363,1736147258173,-500.0,0.00019452,3]
[347840364,1736147258195,-1350.83,0.00019452,3]
[347840365,1736147258216,-500.0,0.00019452,3]
[347840366,1736147258239,-500.0,0.00019452,3]
[347840367,1736147258263,-16406.61,0.00019452,3]
[347840368,1736147258286,-519.56646181,0.00019452,3]
[347840407,1736147438815,-178.3207069,0.00018524,2]
[347840408,1736147438825,-478.54291402,0.00018711,2]
[347840409,1736147438835,-362.77327888,0.000189,2]
[347840410,1736147438844,-450.2955239,0.00019,2]
[347840411,1736147438853,-300.0,0.00019177,2]
[347840412,1736147438863,-500.0,0.00019178,2]
[347840413,1736147438873,-500.0,0.00019178,2]
[347840414,1736147438883,-500.0,0.00019178,2]
[347840415,1736147438893,-500.0,0.00019178,2]
[347840416,1736147438902,-500.0,0.00019178,2]
[347840417,1736147438912,-308.76,0.00019178,2]
[347840418,1736147438921,-500.0,0.00019178,2]
[347840419,1736147438931,-500.0,0.00019178,2]
[347840420,1736147438940,-562.78,0.00019178,2]
[347840421,1736147438950,-500.0,0.00019178,2]
[347840422,1736147438960,-500.0,0.00019178,2]
[347840423,1736147438970,-917.3,0.00019178,2]
[347840424,1736147438980,-602.07082985,0.00019178,2]
[347840425,1736147438989,-582.05,0.00019178,2]
[347840426,1736147438999,-500.0,0.00019178,2]
[347840427,1736147439009,-500.0,0.00019178,2]
[347840428,1736147439019,-500.0,0.00019178,2]
[347840429,1736147439028,-1238.26,0.00019178,2]
[347840430,1736147439038,-500.0,0.00019178,2]
[347840431,1736147439048,-500.0,0.00019178,2]
[347840432,1736147439058,-500.0,0.00019178,2]
[347840433,1736147439067,-500.0,0.00019178,2]
[347840434,1736147439076,-555.45,0.00019178,2]
[347840435,1736147439086,-500.0,0.00019178,2]
[347840436,1736147439096,-1128.64,0.00019178,2]
[347840437,1736147439105,-15039.39,0.00019178,2]
[347840438,1736147439114,-5894.09,0.00019178,2]
[347840439,1736147439124,-500.0,0.00019178,2]
[347840440,1736147439133,-500.0,0.00019178,2]
[347840441,1736147439142,-500.0,0.00019178,2]
[347840442,1736147439152,-500.0,0.00019178,2]
[347840443,1736147439161,-500.0,0.00019178,2]
[347840444,1736147439170,-584.42,0.00019178,2]
[347840445,1736147439180,-500.0,0.00019178,2]
[347840446,1736147439190,-500.0,0.00019178,2]
[347840447,1736147439199,-825.93,0.00019178,2]
[347840448,1736147439209,-1931.86,0.00019178,2]
[347840449,1736147439218,-302.84859387,0.00019355,2]
[347840450,1736147439227,-285.17065218,0.00019451,2]
[347840451,1736147439237,-500.0,0.00019452,3]
[347840452,1736147439247,-500.0,0.00019452,3]
[347840453,1736147439256,-500.0,0.00019452,3]
[347840454,1736147439265,-500.0,0.00019452,3]
[347840455,1736147439275,-913.66,0.00019452,3]
[347840456,1736147439285,-500.0,0.00019452,3]
[347840457,1736147439294,-799.62,0.00019452,3]
[347840458,1736147439304,-500.0,0.00019452,3]
[347840459,1736147439314,-500.0,0.00019452,3]
[347840460,1736147439323,-500.0,0.00019452,3]
[347840461,1736147439333,-3729.87,0.00019452,3]
[347840462,1736147439343,-586.70778169,0.00019452,3]
[347840463,1736147439352,-500.0,0.00019452,3]
[347840464,1736147439362,-500.0,0.00019452,3]
[347840465,1736147439371,-500.0,0.00019452,3]
[347840466,1736147439381,-500.0,0.00019452,3]
[347840467,1736147439391,-220.14,0.00019452,3]
[347840468,1736147439401,-562.78,0.00019452,3]
[347840469,1736147439411,-500.0,0.00019452,3]
[347840470,1736147439421,-499.06,0.00019452,3]
[347840471,1736147439430,-917.3,0.00019452,3]
[347840472,1736147439439,-582.05,0.00019452,3]
[347840473,1736147439449,-500.0,0.00019452,3]
[347840474,1736147439458,-500.0,0.00019452,3]
[347840475,1736147439468,-500.0,0.00019452,3]
[347840476,1736147439478,-1238.26,0.00019452,3]
[347840477,1736147439615,-170.76,0.00019452,3]
[347840478,1736147439625,-500.0,0.00019452,3]
[347840479,1736147439635,-500.0,0.00019452,3]
[347840480,1736147439645,-571.8,0.00019452,3]
[347840481,1736147439654,-555.45,0.00019452,3]
[347840482,1736147439663,-500.0,0.00019452,3]
[347840483,1736147439674,-1128.64,0.00019452,3]
[347840484,1736147439683,-15039.39,0.00019452,3]
[347840485,1736147439693,-5894.09,0.00019452,3]
[347840486,1736147439705,-500.0,0.00019452,3]
[347840487,1736147439714,-169.97081782,0.00019452,3]
[347840488,1736147439725,-500.0,0.00019452,3]
[347840489,1736147439736,-500.0,0.00019452,3]
[347840490,1736147439744,-500.0,0.00019452,3]
[347840491,1736147439755,-584.42,0.00019452,3]
[347840492,1736147439763,-500.0,0.00019452,3]
[347840493,1736147439771,-500.0,0.00019452,3]
[347840494,1736147439779,-825.93,0.00019452,3]
[347840495,1736147439787,-1931.86,0.00019452,3]
[347840496,1736147439796,-688.54,0.00019464,3]
[347840497,1736147439806,-500.0,0.0001947,2]
[347840498,1736147439815,-4691.61,0.0001947,3]
[347840499,1736147439825,-155.7564101,0.00019478,2]
[347840500,1736147439835,-306.0,0.00019478,2]
[347840501,1736147439844,-307.2264451,0.00019478,2]
[347840502,1736147439854,-302.60665977,0.00019548,2]
[347840503,1736147439863,-500.0,0.00019726,3]
[347840504,1736147439872,-500.0,0.00019726,3]
[347840505,1736147439882,-500.0,0.00019726,3]
[347840506,1736147439891,-500.0,0.00019726,3]
[347840507,1736147439901,-500.0,0.00019726,3]
[347840508,1736147439910,-500.0,0.00019726,3]
[347840509,1736147439920,-592.76,0.00019726,3]
[347840510,1736147439929,-546.77,0.00019726,3]
[347840511,1736147439939,-500.0,0.00019726,3]
[347840512,1736147439948,-500.0,0.00019726,3]
[347840513,1736147439958,-500.0,0.00019726,3]
[347840514,1736147439968,-500.0,0.00019726,3]
[347840515,1736147439978,-500.0,0.00019726,3]
[347840516,1736147439987,-500.0,0.00019726,3]
[347840517,1736147439997,-523.77,0.00019726,3]
[347840518,1736147440008,-500.0,0.00019726,3]
[347840519,1736147440018,-500.0,0.00019726,3]
[347840520,1736147440028,-500.0,0.00019726,3]
[347840521,1736147440037,-500.0,0.00019726,3]
[347840522,1736147440046,-202.02447947,0.00019726,3]
[347840523,1736147440056,-500.0,0.00019726,3]
[347840524,1736147440065,-500.0,0.00019726,3]
[347840525,1736147440075,-913.66,0.00019726,3]
[347840526,1736147440084,-500.0,0.00019726,3]
[347840527,1736147440094,-799.62,0.00019726,3]
[347840528,1736147440103,-429.02,0.00019726,3]
[347840529,1736147440113,-500.0,0.00019726,3]
[347840530,1736147440122,-500.0,0.00019726,3]
[347840531,1736147440131,-3729.87,0.00019726,3]
[347840532,1736147440141,-500.0,0.00019726,3]
[347840533,1736147440150,-500.0,0.00019726,3]
[347840534,1736147440160,-500.0,0.00019726,3]
[347840535,1736147440170,-500.0,0.00019726,3]
[347840536,1736147440179,-562.78,0.00019726,3]
[347840537,1736147440189,-500.0,0.00019726,3]
[347840538,1736147440198,-917.3,0.00019726,3]
[347840539,1736147440208,-582.05,0.00019726,3]
[347840540,1736147440217,-500.0,0.00019726,3]
[347840541,1736147440226,-500.0,0.00019726,3]
[347840542,1736147440236,-500.0,0.00019726,3]
[347840543,1736147440245,-1238.26,0.00019726,3]
[347840544,1736147440256,-500.0,0.00019726,3]
[347840545,1736147440266,-628.74,0.00019726,3]
[347840546,1736147440276,-555.45,0.00019726,3]
[347840547,1736147440285,-500.0,0.00019726,3]
[347840548,1736147440295,-1128.64,0.00019726,3]
[347840549,1736147440305,-15039.39,0.00019726,3]
[347840550,1736147440314,-5894.09,0.00019726,3]
[347840551,1736147440324,-252.06289877,0.00019726,3]
[347840552,1736147440334,-500.0,0.00019726,3]
[347840553,1736147440344,-500.0,0.00019726,3]
[347840554,1736147440354,-500.0,0.00019726,3]
[347840555,1736147440363,-584.42,0.00019726,3]
[347840556,1736147440371,-500.0,0.00019726,3]
[347840557,1736147440379,-500.0,0.00019726,3]
[347840558,1736147440387,-825.93,0.00019726,3]
[347840559,1736147440395,-1931.86,0.00019726,3]
[347840561,1736147440404,-688.54,0.00019738,3]
[347840562,1736147440413,-500.0,0.00019744,2]
[347840564,1736147440421,-4691.61,0.00019744,3]
[347840565,1736147440431,-708.17,0.00019763,3]
[347840566,1736147440441,-500.0,0.00019763,3]
[347840567,1736147440451,-500.0,0.00019763,3]
[347840568,1736147440461,-500.0,0.00019763,3]
[347840570,1736147440471,-500.0,0.00019763,3]
[347840572,1736147440480,-500.0,0.00019763,3]
[347840574,1736147440491,-1788.38,0.00019763,3]
[347840576,1736147440502,-500.0,0.00019763,3]
[347840577,1736147440511,-500.0,0.00019763,3]
[347840579,1736147440521,-1500.78,0.00019763,3]
[347840581,1736147440531,-500.0,0.00019763,3]
[347840582,1736147440541,-500.0,0.00019763,3]
[347840584,1736147440551,-593.67,0.00019763,3]
[347840585,1736147440561,-500.0,0.00019773,2]
[347840586,1736147440571,-500.0,0.00019773,2]
[347840587,1736147440582,-3911.50343835,0.000199,2]
[347840588,1736147440592,-500.0,0.0002,3]
[347840590,1736147440602,-6336.42856968,0.0002,2]
[347840779,1736147446872,-993.95,0.00018178,2]
[347840902,1736147448835,-1145.2390328,0.00018178,2]
[347840903,1736147448846,-699.67,0.00019178,2]
[347840904,1736147448856,-699.67,0.00019452,3]
[347840905,1736147448866,-699.67,0.00019726,3]
[347840907,1736147448876,-253.57143032,0.0002,2]
[347840909,1736147448887,-500.0,0.0002,3]
[347840911,1736147448896,-256.95411532,0.0002,3]
[347840913,1736147448906,-500.0,0.0002,3]
[347840915,1736147448916,-500.0,0.0002,3]
[347840917,1736147448926,-500.0,0.0002,3]
[347840919,1736147448939,-592.76,0.0002,3]
[347840921,1736147448949,-546.77,0.0002,3]
[347840923,1736147448960,-500.0,0.0002,3]
[347840925,1736147448970,-500.0,0.0002,3]
[347840927,1736147448979,-500.0,0.0002,3]
[347840929,1736147448988,-500.0,0.0002,3]
[347840931,1736147448998,-500.0,0.0002,3]
[347840933,1736147449007,-523.77,0.0002,3]
[347840934,1736147449017,-500.0,0.0002,3]
[347840936,1736147449027,-500.0,0.0002,3]
[347840938,1736147449037,-500.0,0.0002,3]
[347840940,1736147449047,-228.18,0.0002,3]
[347840942,1736147449056,-3729.87,0.0002,3]
[347840944,1736147449066,-500.0,0.0002,3]
[347840946,1736147449075,-500.0,0.0002,3]
[347840948,1736147449085,-500.0,0.0002,3]
[347840950,1736147449095,-500.0,0.0002,3]
[347840952,1736147449105,-437.27218924,0.0002,3]
[347841033,1736148339731,174.430205,0.00013973,2]
[347841036,1736148432108,-654.723,0.00016023,2]
[347841037,1736148432130,-300.0,0.00016185,2]
[347841038,1736148432151,-300.0,0.00017715,2]
[347841039,1736148432171,-22961.38285553,0.00017715,2]
[347841041,1736148436098,-1808.61714447,0.00017715,2]
[347841042,1736148436119,-754.71486678,0.00017716,2]
[347841066,1736148632186,-9812.28318322,0.000179,2]
[347841067,1736148632196,-300.0,0.00017999,2]
[347841068,1736148632205,-1368.26558866,0.00018,2]
[347841131,1736148638096,-927.07769019,0.00018,2]
[347841133,1736148638105,-241.84885258,0.000189,2]
[347841135,1736148638115,-268.107,0.00019078,2]
[347841137,1736148638124,-228.0023599,0.00019178,2]
[347841139,1736148638133,-238.21700252,0.00019178,2]
[347841141,1736148638145,-261.78299748,0.00019178,2]
[347841143,1736148638154,-500.0,0.00019178,2]
[347841145,1736148638163,-500.0,0.00019178,2]
[347841147,1736148638172,-500.0,0.00019178,2]
[347841149,1736148638182,-500.0,0.00019178,2]
[347841151,1736148638191,-500.0,0.00019178,2]
[347841153,1736148638200,-500.0,0.00019178,2]
[347841155,1736148638209,-500.0,0.00019178,2]
[347841157,1736148638218,-500.0,0.00019178,2]
[347841159,1736148638227,-500.0,0.00019178,2]
[347841161,1736148638236,-500.0,0.00019178,2]
[347841163,1736148638245,-500.0,0.00019178,2]
[347841165,1736148638255,-1713.87,0.00019178,2]
[347841167,1736148638264,-500.0,0.00019178,2]
[347841169,1736148638273,-500.0,0.00019178,2]
[347841171,1736148638283,-500.0,0.00019178,2]
[347841173,1736148638292,-500.0,0.00019178,2]
[347841175,1736148638301,-500.0,0.00019178,2]
[347841177,1736148638310,-500.0,0.00019178,2]
[347841179,1736148638319,-500.0,0.00019178,2]
[347841181,1736148638329,-500.0,0.00019178,2]
[347841183,1736148638338,-4126.0,0.00019178,2]
[347841185,1736148638347,-500.0,0.00019178,2]
[347841187,1736148638356,-1378.32,0.00019178,2]
[347841189,1736148638367,-500.0,0.00019178,2]
[347841191,1736148638378,-500.0,0.00019178,2]
[347841194,1736148638387,-799.46,0.00019178,2]
[347841196,1736148638396,-612.21,0.00019178,2]
[347841198,1736148638410,-3108.22,0.00019178,2]
[347841199,1736148638429,-562.36,0.00019178,2]
[347841202,1736148638450,-1953.59,0.00019178,2]
[347841203,1736148638471,-390.64483172,0.00019178,2]
[347841205,1736148638502,-430.65633954,0.00019178,2]
[347841207,1736148638528,-500.0,0.00019178,2]
[347841209,1736148638551,-500.0,0.00019178,2]
[347841211,1736148638572,-500.0,0.00019178,2]
[347841214,1736148638594,-568.93,0.00019178,2]
[347841215,1736148638615,-500.0,0.00019178,2]
[347841217,1736148638636,-560.12,0.00019178,2]
[347841219,1736148638656,-823.47,0.00019178,2]
[347841221,1736148638677,-509.29,0.00019178,2]
[347841223,1736148638696,-1083.48,0.00019178,2]
[347841225,1736148638712,-500.0,0.00019178,2]
[347841227,1736148638721,-500.0,0.00019178,2]
[347841229,1736148638732,-500.0,0.00019178,2]
[347841231,1736148638742,-500.0,0.00019178,2]
[347841233,1736148638753,-500.0,0.00019178,2]
[347841235,1736148638762,-987.56,0.00019178,2]
[347841237,1736148638772,-13159.47,0.00019178,2]
[347841239,1736148638782,-500.0,0.00019178,2]
[347841241,1736148638791,-500.0,0.00019178,2]
[347841243,1736148638800,-500.0,0.00019178,2]
[347841245,1736148638809,-500.0,0.00019178,2]
[347841247,1736148638819,-500.0,0.00019178,2]
[347841249,1736148638829,-1690.38,0.00019178,2]
[347841251,1736148638839,-511.37,0.00019178,2]
[347841253,1736148638848,-500.0,0.00019178,2]
[347841255,1736148638857,-678.66,0.00019178,2]
[347841257,1736148638867,-722.68,0.00019178,2]
[347841259,1736148638877,-161.067107,0.00019178,2]
[347841261,1736148638887,-155.3,0.00019178,2]
[347841263,1736148638897,-3781.11999055,0.000192,2]
[347841265,1736148638906,-3781.11999032,0.000192,2]
[347841267,1736148638916,-3781.11999032,0.00019245,2]
[347841269,1736148638926,-489.321,0.0001929,2]
[347841271,1736148638935,-3781.11999032,0.00019417,2]
[347841273,1736148638944,-500.0,0.00019451,3]
[347841275,1736148638954,-500.0,0.00019451,3]
[347841277,1736148638963,-500.0,0.00019451,3]
[347841279,1736148638974,-500.0,0.00019452,3]
[347841281,1736148638984,-500.0,0.00019452,3]
[347841283,1736148638994,-500.0,0.00019452,3]
[347841285,1736148639004,-500.0,0.00019452,3]
[347841287,1736148639014,-500.0,0.00019452,3]
[347841289,1736148639024,-408.53,0.00019452,3]
[347841292,1736148639034,-500.0,0.00019452,3]
[347841294,1736148639045,-500.0,0.00019452,3]
[347841296,1736148639054,-1713.87,0.00019452,3]
[347841298,1736148639063,-500.0,0.00019452,3]
[347841300,1736148639073,-500.0,0.00019452,3]
[347841302,1736148639082,-487.31,0.00019452,3]
[347841304,1736148639092,-500.0,0.00019452,2]
[347841305,1736148639102,-500.0,0.00019452,3]
[347841308,1736148639111,-500.0,0.00019452,3]
[347841310,1736148639121,-500.0,0.00019452,3]
[347841312,1736148639131,-500.0,0.00019452,3]
[347841314,1736148639140,-4126.0,0.00019452,3]
[347841316,1736148639150,-1378.32,0.00019452,3]
[347841318,1736148639160,-500.0,0.00019452,3]
[347841319,1736148639169,-500.0,0.00019452,3]
[347841322,1736148639179,-799.46,0.00019452,3]
[347841323,1736148639188,-612.21,0.00019452,3]
[347841326,1736148639197,-3108.22,0.00019452,3]
[347841328,1736148639206,-562.36,0.00019452,3]
[347841330,1736148639215,-1953.59,0.00019452,3]
[347841332,1736148639225,-581.81,0.00019452,3]
[347841333,1736148639234,-500.0,0.00019452,3]
[347841335,1736148639243,-500.0,0.00019452,3]
[347841337,1736148639253,-568.93,0.00019452,3]
[347841339,1736148639262,-500.0,0.00019452,3]
[347841341,1736148639271,-823.47,0.00019452,3]
[347841343,1736148639280,-509.29,0.00019452,3]
[347841345,1736148639289,-1083.48,0.00019452,3]
[347841347,1736148639299,-500.0,0.00019452,3]
[347841349,1736148639308,-500.0,0.00019452,3]
[347841351,1736148639317,-500.0,0.00019452,3]
[347841353,1736148639327,-500.0,0.00019452,3]
[347841355,1736148639336,-500.0,0.00019452,3]
[347841357,1736148639346,-987.56,0.00019452,3]
[347841359,1736148639355,-13159.47,0.00019452,3]
[347841362,1736148639366,-426.07517084,0.00019452,3]
[347841364,1736148639378,-500.0,0.00019452,3]
[347841365,1736148639387,-500.0,0.00019452,3]
[347841368,1736148639396,-350.70509447,0.00019452,3]
[347841741,1736148643005,-149.29490553,0.00019452,3]
[347841743,1736148643015,-500.0,0.00019452,3]
[347841745,1736148643024,-1690.38,0.00019452,3]
[347841747,1736148643034,-511.37,0.00019452,3]
[347841749,1736148643044,-500.0,0.00019452,3]
[347841751,1736148643054,-678.66,0.00019452,3]
[347841753,1736148643064,-722.68,0.00019452,3]
[347841755,1736148643073,-3781.11999032,0.0001959,2]
[347841757,1736148643083,-13192.91789701,0.00019629,2]
[347841759,1736148643093,-420.0,0.00019639,2]
[347841761,1736148643103,-297.69,0.00019725,3]
[347841763,1736148643113,-500.0,0.00019725,3]
[347841765,1736148643123,-500.0,0.00019726,3]
[347841768,1736148643134,-500.0,0.00019726,3]
[347841770,1736148643143,-500.0,0.00019726,3]
[347841772,1736148643153,-500.0,0.00019726,3]
[347841774,1736148643162,-500.0,0.00019726,3]
[347841776,1736148643172,-500.0,0.00019726,3]
[347841778,1736148643182,-500.0,0.00019726,3]
[347841781,1736148643191,-1713.87,0.00019726,3]
[347841783,1736148643201,-500.0,0.00019726,3]
[347841786,1736148643210,-500.0,0.00019726,3]
[347841789,1736148643219,-398.63125014,0.00019726,3]
[347841791,1736148643232,-500.0,0.00019726,2]
[347841793,1736148643241,-500.0,0.00019726,3]
[347841795,1736148643251,-500.0,0.00019726,3]
[347841797,1736148643260,-500.0,0.00019726,3]
[347841799,1736148643269,-4126.0,0.00019726,3]
[347841801,1736148643279,-1378.32,0.00019726,3]
[347841803,1736148643289,-500.0,0.00019726,3]
[347841805,1736148643299,-500.0,0.00019726,3]
[347841807,1736148643308,-799.46,0.00019726,3]
[347841809,1736148643318,-612.21,0.00019726,3]
[347841811,1736148643327,-3108.22,0.00019726,3]
[347841813,1736148643336,-562.36,0.00019726,3]
[347841815,1736148643345,-569.07631014,0.00019726,3]
[347841818,1736148643357,-1384.51368986,0.00019726,3]
[347841820,1736148643366,-500.0,0.00019726,3]
[347841822,1736148643380,-500.0,0.00019726,3]
[347841824,1736148643389,-568.93,0.00019726,3]
[347841826,1736148643398,-500.0,0.00019726,3]
[347841828,1736148643408,-823.47,0.00019726,3]
[347841830,1736148643419,-509.29,0.00019726,3]
[347841832,1736148643429,-1083.48,0.00019726,3]
[347841834,1736148643439,-582.23,0.00019726,3]
[347841836,1736148643450,-500.0,0.00019726,3]
[347841838,1736148643460,-500.0,0.00019726,3]
[347841840,1736148643470,-500.0,0.00019726,3]
[347841842,1736148643482,-500.0,0.00019726,3]
[347841844,1736148643492,-987.56,0.00019726,3]
[347841846,1736148643501,-13159.47,0.00019726,3]
[347841848,1736148643511,-278.48,0.00019726,3]
[347841850,1736148643520,-500.0,0.00019726,3]
[347841852,1736148643530,-500.0,0.00019726,3]
[347841854,1736148643539,-500.0,0.00019726,3]
[347841856,1736148643548,-725.92913829,0.00019726,3]
[347842122,1736148646044,-964.45086171,0.00019726,3]
[347842124,1736148646054,-511.37,0.00019726,3]
[347842126,1736148646063,-500.0,0.00019726,3]
[347842128,1736148646072,-678.66,0.00019726,3]
[347842130,1736148646083,-722.68,0.00019726,3]
[347842132,1736148646092,-132.91079525,0.00019762,2]
[347842135,1736148646103,-3648.20919507,0.00019762,2]
[347842136,1736148646112,-319.59080493,0.00019763,3]
[347843087,1736149356658,182.108817,0.00013973,2]
[347843088,1736149372103,-530.8868146,0.00018863,2]
[347843089,1736149372124,-161.23256839,0.000189,2]
[347843090,1736149372145,-616.9154196,0.00019078,2]
[347843091,1736149372166,-214.486,0.00019177,2]
[347843092,1736149372188,-300.0,0.00019177,2]
[347843093,1736149372210,-500.0,0.00019178,2]
[347843094,1736149372230,-500.0,0.00019178,2]
[347843095,1736149372250,-500.0,0.00019178,2]
[347843096,1736149372271,-500.0,0.00019178,2]
[347843097,1736149372292,-500.0,0.00019178,2]
[347843098,1736149372314,-500.0,0.00019178,2]
[347843099,1736149372334,-495.67727586,0.00019178,2]
[347843100,1736149372353,-502.95589363,0.00019178,2]
[347843101,1736149372374,-503.79289684,0.00019178,2]
[347843102,1736149372396,-500.0,0.00019178,2]
[347843103,1736149372417,-500.0,0.00019178,2]
[347843104,1736149372439,-500.0,0.00019178,2]
[347843105,1736149372459,-500.0,0.00019178,2]
[347843106,1736149372480,-500.0,0.00019178,2]
[347843107,1736149372631,-210.82117571,0.00019178,2]
[347843108,1736149372652,-500.0,0.00019178,2]
[347843109,1736149372676,-500.0,0.00019178,2]
[347843110,1736149372698,-500.0,0.00019178,2]
[347843111,1736149372720,-500.0,0.00019178,2]
[347843112,1736149372740,-500.0,0.00019178,2]
[347843113,1736149372761,-500.0,0.00019178,2]
[347843114,1736149372781,-500.0,0.00019178,2]
[347843115,1736149372801,-638.95284557,0.00019178,2]
[347843116,1736149372822,-500.0,0.00019178,2]
[347843117,1736149372842,-500.0,0.00019178,2]
[347843118,1736149372864,-500.0,0.00019178,2]
[347843119,1736149372884,-500.0,0.00019178,2]
[347843120,1736149372905,-500.0,0.00019178,2]
[347843121,1736149372926,-611.65993568,0.00019178,2]
[347843122,1736149372948,-500.0,0.00019178,2]
[347843123,1736149372968,-500.0,0.00019178,2]
[347843124,1736149372990,-500.0,0.00019178,2]
[347843125,1736149373011,-631.93380606,0.00019178,2]
[347843126,1736149373032,-500.0,0.00019178,2]
[347843127,1736149373052,-502.78166121,0.00019178,2]
[347843128,1736149373074,-501.66086818,0.00019178,2]
[347843129,1736149373096,-500.0,0.00019178,2]
[347843130,1736149373117,-500.0,0.00019178,2]
[347843131,1736149373139,-500.0,0.00019178,2]
[347843132,1736149373160,-500.0,0.00019178,2]
[347843133,1736149373181,-507.31671329,0.00019178,2]
[347843134,1736149373212,-508.39021735,0.00019178,2]
[347843135,1736149373239,-500.0,0.00019178,2]
[347843136,1736149373262,-500.0,0.00019178,2]
[347843137,1736149373285,-500.0,0.00019178,2]
[347843138,1736149373307,-500.0,0.00019178,2]
[347843139,1736149373331,-500.0,0.00019178,2]
[347843140,1736149373354,-500.0,0.00019178,2]
[347843141,1736149373378,-5395.15,0.00019178,2]
[347843142,1736149373401,-500.0,0.00019178,2]
[347843143,1736149373425,-500.0,0.00019178,2]
[347843144,1736149373448,-500.0,0.00019178,2]
[347843145,1736149373469,-502.22646029,0.00019178,2]
[347843146,1736149373491,-501.29536736,0.00019178,2]
[347843147,1736149373514,-514.87,0.00019178,2]
[347843148,1736149373537,-500.0,0.00019178,2]
[347843149,1736149373562,-533.5514029,0.00019178,2]